Cogmind - Beta 15 @@@ ROGUE MODE // 2025.07.09 @ 13:35:15 Player: PJ Result: Destroyed by as-49633 with Assembled Heavy Rifle Performance ------------- Evolutions (0) 0 Regions Visited (2) 400 Robots Destroyed (19) 95 Value Destroyed (288) 288 Prototype IDs (0) 0 Alien Tech Used (0) 0 Bonus (0) 0 TOTAL SCORE: 783 Bonus ------- None Cogmind --------- Core Integrity 0/250 Matter 285/300 Energy 100/100 System Corruption 6% Temperature Cool (0) Movement Core (400) Ox7 Location -10/Mines Parts ------- > --- POWER (1) -------- (None) > --- PROPULSION (2) --- (None) > --- UTILITY (2) ------ Large Storage Unit > --- WEAPON (2) ------- Medium Laser > --- INVENTORY (15) --- Ion Engine Light Treads Large Battery (200) Large Battery (200) Signal Interpreter ECM Suite ECM Suite Spread Laser Autogun Autogun Peak State ------------ > --- POWER ------------ Ion Engine > --- PROPULSION ------- Light Treads Compact Wheel > --- UTILITY ---------- Heat Sink Small Storage Unit > --- WEAPON ----------- Spread Laser Autogun > --- INVENTORY -------- Ion Engine Light Treads EM Pulse Gun Medium Laser Spread Laser Autogun Autogun Improved Light Cannon [Rating: 10] Favorites ----------- Power Ion Engine Engine Ion Engine Propulsion Compact Wheel Treads Light Treads Leg Aluminum Leg Wheel Compact Wheel Utility Heat Sink Device Heat Sink Storage Large Storage Unit Weapon Spread Laser Energy Gun Spread Laser Ballistic Gun Autogun Ballistic Cannon Improved Light Cannon Build | -11 -10 -10 ------- Run | Yrd Mat Min Slots Evolved . | . . . Power . | . . . Propulsion . | . . . Utility . | . . . Weapon . | . . . Parts Attached 16 | 7 6 3 Power 1 | 1 . . Engine 1 | 1 . . Core . | . . . Reactor . | . . . Propulsion 6 | 3 . 3 Treads 1 | 1 . . Leg 2 | . . 2 Wheel 3 | 2 . 1 Hover . | . . . Flight . | . . . Utility 3 | 1 2 . Device 1 | . 1 . Storage 2 | 1 1 . Processor . | . . . Hackware . | . . . Protection . | . . . Artifact . | . . . Weapon 6 | 2 4 . Energy Gun 4 | 2 2 . Energy Cannon . | . . . Ballistic Gun 1 | . 1 . Ballistic Cannon 1 | . 1 . Launcher . | . . . Special Weapon . | . . . Impact Weapon . | . . . Slashing Weapon . | . . . Piercing Weapon . | . . . Special Melee Weapon . | . . . Unidentified Prototypes . | . . . Parts Lost 10 | . . 10 Power 1 | . . 1 Propulsion 5 | . . 5 Utility 1 | . . 1 Weapon 3 | . . 3 Highest Loss Streak 10 | . . 10 To Critical Strikes . | . . . Average Backups 10 | 1 10 13 Power . | . 1 1 Propulsion 2 | . 2 3 Utility 2 | . 2 5 Weapon 3 | . 4 4 Tool/Special . | . . . Unused Backups 10 | . . 10 Power 1 | . . 1 Propulsion 1 | . . 1 Utility 5 | . . 5 Weapon 3 | . . 3 Tool/Special . | . . . Average Slot Usage (%) 97 | . 97 92 Engine 13 | . 14 12 Treads 13 | . 13 9 Wheel 13 | . 14 12 Device 12 | . 12 13 Storage 14 | . 14 14 Energy Gun 16 | . 16 14 Ballistic Gun 10 | . 10 9 Ballistic Cannon 1 | . 1 3 Peak Build Rating 10 | 6 10 10 Average Rating 8 | 4 9 9 On Entrance 5 | . 6 10 Naked Turns . | . . . Heaviest Build 33 | 13 33 32 Greatest Support 26 | 26 20 16 Greatest Overweight (x) 10 | . 4 10 Average Overweight (x) . | . . 1 Largest Inventory Capacity 15 | 8 15 15 Average Capacity 12 | 7 12 15 Most Carried 15 | 2 15 15 Average Carried 10 | 1 10 13 Final Capacity 15 | 8 15 15 Final Carried 15 | 2 15 10 Class Distribution -------------------- 100% | Mutant Dominant Class ---------------- Mutant | -10/Materials Mutant | -10/Mines Resources | -11 -10 -10 ----------- Run | Yrd Mat Min Matter Collected 550 | 236 314 . Remotely . | . . . Salvage Created 422 | . 422 . Parts 34 | . 34 . Haulers Intercepted . | . . . Recyclers Shooed 1 | . 1 . Parts Field Recycled . | . . . Retrieved Matter . | . . . Parts Self-Destructed . | . . . Prevented . | . . . Kills | -11 -10 -10 ------- Run | Yrd Mat Min Combat Hostiles Destroyed 10 | . 10 . Guns 10 | . 10 . Classes Destroyed 6 | . 6 . Worker 4 | . 4 . Tunneler 1 | . 1 . Recycler 2 | . 2 . Watcher 2 | . 2 . Swarmer 5 | . 5 . Grunt 5 | . 5 . Best Kill Streak 3 | . 3 . Combat Bots Only 3 | . 3 . Max Kills in Single Turn 2 | . 2 . Gunslinging . | . . . Exploded . | . . . Melee . | . . . Uniques/NPCs Destroyed . | . . . Combat | -11 -10 -10 -------- Run | Yrd Mat Min Hostile Shots Fired 121 | . 56 65 Missed 32 | . 18 14 Hits 89 | . 38 51 Melee 19 | . . 19 Projectile 70 | . 38 32 Part Disruptions 1 | . . 1 Damage Taken 1226 | . 314 912 Core 254 | . 76 178 Absorbed by Shields . | . . . Core Remaining (%) 100 | 100 . . Volleys Fired 57 | . 57 . Largest 2 | . 2 . Hottest 98 | . 98 . Shots Fired 97 | . 97 . Gun 82 | . 82 . Cannon 15 | . 15 . Launcher . | . . . Special . | . . . Kinetic 45 | . 45 . Thermal 43 | . 43 . Explosive . | . . . Electromagnetic 9 | . 9 . Robot Hit Streak 7 | . 7 . Robot Miss Streak 9 | . 9 . Penetration Max . | . . . Secondary Targets 1 | . 1 . Max Gunslinging Chain 1 | . 1 . Shots Hit Robots 62 | . 62 . Core Hits 47 | . 47 . Critical Kills . | . . . Critical Parts Destroyed . | . . . Critical Strikes . | . . . Melee Attacks . | . . . Impact . | . . . Slashing . | . . . Piercing . | . . . Sneak Attacks . | . . . Combat Hostiles . | . . . Follow-up Attacks . | . . . Damage Inflicted 877 | . 877 . Guns 732 | . 732 . Cannons 145 | . 145 . Explosions . | . . . Melee . | . . . Ramming . | . . . Kinetic 438 | . 438 . Thermal 386 | . 386 . Explosive . | . . . Electromagnetic 53 | . 53 . Impact . | . . . Slashing . | . . . Piercing . | . . . Highest Corruption 6 | . . 6 Average Corruption 3 | . . 3 Corruption Purged . | . . . Corruption Blocked . | . . . Effects 2 | . . 2 Message Errors 1 | . . 1 Alerts 1 | . . 1 Overload Shots . | . . . Overflow Damage 6 | . 6 . Projectiles 6 | . 6 . Explosions . | . . . Melee . | . . . Knockbacks 3 | . 3 . Impact . | . . . Kinetic 3 | . 3 . Secondary . | . . . Self-Inflicted Damage . | . . . Shots . | . . . Rammed . | . . . Targets Rammed . | . . . Kicked . | . . . Crushed . | . . . Highest Temperature 66 | . 66 10 Average Temperature 22 | . 22 10 Received Heat Transfer 285 | . 45 240 Siege Activations . | . . . Martial Activations . | . . . Shielding Activations . | . . . Robots Disrupted . | . . . Combat Hostiles . | . . . Robots Corrupted . | . . . Combat Hostiles . | . . . Parts Fried . | . . . Impact Corruptions . | . . . Robots Melted . | . . . Combat Hostiles . | . . . Parts Melted . | . . . Heat Transferred 601 | . 601 . Parts Sabotaged . | . . . Parts Stolen . | . . . Parts Stripped . | . . . Power Chain Reactions . | . . . Alert | -11 -10 -10 ------- Run | Yrd Mat Min Maximum Alert Level . | . . . Low Security (%) 100 | 100 100 100 Level 1 . | . . . Level 2 . | . . . Level 3 . | . . . Level 4 . | . . . Level 5 . | . . . High Security . | . . . Max Security . | . . . Peak Influence 95 | . 95 . Initial . | . . . Average 20 | . 25 . Influence Increases 330 | . 330 . Destroy 0b10 Robot/C 200 | . 200 . Destroy 0b10 Robot/NC 45 | . 45 . Destroy Leader 64 | . 64 . Successful Hack 20 | . 20 . Destroy Structure 1 | . 1 . Influence Decreases 330 | . 330 . Time Decay 269 | . 269 . Purge Threat 61 | . 61 . Squads Dispatched 3 | . 3 . Investigation 2 | . 2 . Extermination . | . . . Reinforcement 1 | . 1 . Assault . | . . . Garrison . | . . . Intercept . | . . . Searches Triggered . | . . . Construction Impeded . | . . . Haulers Reinforced . | . . . Active Scanning Responses . | . . . Cargo Convoy Interrupts . | . . . Stealth | -11 -10 -10 --------- Run | Yrd Mat Min Distress Signals . | . . . Communications Jammed . | . . . Distress Signals . | . . . Times Spotted 31 | . 16 15 Peak Tracking Total 19 | . 3 19 Tactical Retreats 3 | . . 3 Traps | -11 -10 -10 ------- Run | Yrd Mat Min Traps Triggered 3 | . 3 . Indirectly . | . . . Trap Hack Attempts . | . . . Triggered . | . . . Disarmed . | . . . Reprogrammed . | . . . Reused . | . . . Traps Extracted . | . . . Installed . | . . . Triggered . | . . . Machines | -11 -10 -10 ---------- Run | Yrd Mat Min Machines Disabled . | . . . Max in Single Turn . | . . . Machines Repaired . | . . . Machines Dismantled . | . . . Machines Sabotaged . | . . . Overloaded Fab Kills . | . . . Hacking | -11 -10 -10 --------- Run | Yrd Mat Min Machines Accessed 8 | . 8 . Terminals 6 | . 6 . Fabricators . | . . . Repair Stations . | . . . Recycling Units 2 | . 2 . Scanalyzers . | . . . Garrison Access . | . . . Total Hacks 19 | . 19 . Successful 12 | . 12 . Failed 7 | . 7 . Catastrophic 1 | . 1 . Database Lockouts . | . . . Manual 15 | . 15 . Terminals 16 | . 16 . Fabricators . | . . . Repair Stations . | . . . Recycling Units 3 | . 3 . Scanalyzers . | . . . Garrison Access . | . . . Terminal Hacks 3 | . 3 . Branch Access Points 1 | . 1 . Unreport Threat 1 | . 1 . Locate Traps 1 | . 1 . Fabricator Hacks . | . . . Repair Station Hacks . | . . . Recycling Unit Hacks 1 | . 1 . Retrieve Components 1 | . 1 . Scanalyzer . | . . . Garrison Access Hacks . | . . . Unauthorized Hacks 8 | . 8 . Terminals 8 | . 8 . Botnet 4 | . 4 . Skim 4 | . 4 . Fabricators . | . . . Repair Stations . | . . . Recycling Units . | . . . Scanalyzers . | . . . Garrison Access . | . . . Data Cores Recovered . | . . . Used . | . . . Hacking Detections 6 | . 6 . Full Trace Events 1 | . 1 . Feedback Events . | . . . Feedback Blocked . | . . . Robot Schematics Acquired . | . . . Robots Built . | . . . Authchips . | . . . Time . | . . . Total Robot Build Rating . | . . . Part Schematics Acquired . | . . . Parts Built . | . . . Authchips . | . . . Time . | . . . Total Part Build Rating . | . . . Parts Repaired . | . . . Time . | . . . Parts Recycled . | . . . Recycled Matter . | . . . Retrieved Matter . | . . . Retrieved Components 3 | . 3 . Parts Scanalyzed . | . . . Part Schematics Acquired . | . . . Parts Damaged . | . . . Bothacking | -11 -10 -10 ------------ Run | Yrd Mat Min Used RIF Installer . | . . . Robots Hacked . | . . . Non-combat . | . . . Combat . | . . . Robot Hacks Applied . | . . . Relay Couplers Released . | . . . Fabnet Peak Effective % . | . . . Robots Rewired . | . . . Allies Hacked . | . . . Hacks Repelled . | . . . Allies | -11 -10 -10 -------- Run | Yrd Mat Min Total Allies . | . . . Largest Group . | . . . Highest-Rated Group . | . . . Highest-Rated Ally . | . . . Total Orders . | . . . Ally Attacks . | . . . Total Damage . | . . . Kills . | . . . Allies Corrupted . | . . . Allies Melted . | . . . Intel | -11 -10 -10 ------- Run | Yrd Mat Min Active Infowar (turns) . | . . . Robot Analysis Total . | . . . Derelict Logs Recovered . | . . . Drone Launches . | . . . Drone Recoveries . | . . . Exploration | -11 -10 -10 ------------- Run | Yrd Mat Min Turns Passed 1279 | 98 1027 154 Spaces Moved 834 | 76 639 119 Core 8 | 4 1 3 Treads 231 | 27 204 . Legs 1 | . . 1 Wheels 594 | 45 434 115 Hover . | . . . Flight . | . . . Fastest Speed 50 | 50 115 115 Average Speed 128 | 113 130 125 Slowest Speed 550 | 160 250 550 Overloaded Moves . | . . . Propulsion Burnouts . | . . . Robots Hopped . | . . . Potential Cave-ins . | . . . Cave-ins Triggered . | . . . Exploration Rate (%) 42 | 4 79 45 Regions Visited 2 Branch Regions 1 Pre-discovered Areas . | . . . Known Exits Taken 1 | . 1 . Unknown Exits Taken 1 | 1 . . Scrap Searched 1 | . . 1 Spaces Dug . | . . . Terrain Destroyed 1 | . 1 . Melee . | . . . Projectile 1 | . 1 . AOE . | . . . Terrain Rammed . | . . . Walls Destroyed . | . . . Machines Disabled . | . . . Actions | -11 -10 -10 --------- Run | Yrd Mat Min Total 947 | 85 738 124 Wait 16 | . 16 . Move 832 | 75 638 119 Hop . | . . . Pick Up 16 | 2 14 . Fast Attach 12 | 7 5 . Attach 5 | . . 5 Detach . | . . . Swap 5 | . 5 . Drop 4 | 1 3 . Fire 57 | . 57 . Melee . | . . . Ram . | . . . Kick . | . . . Crush . | . . . Escape Stasis . | . . . Rewire . | . . . Trap . | . . . Miscellaneous . | . . . Route ------- -11/Scrapyard -10/Materials (discovered 4 exits: [*Mat x2] / *Min / [*Sub]) -10/Mines History --------- Turn | Location | Event 9 | -11/Scrapyard | Discovered new exit (range 15) 99 | -11/Scrapyard | Entered Materials 325 | -10/Materials | Discovered new exit (range 10) 335 | -10/Materials | Build established: Mutant 634 | -10/Materials | Discovered new exit (range 14) 965 | -10/Materials | Discovered new exit (range 5) 1020 | -10/Materials | Identified exit to Mines 1085 | -10/Materials | Discovered new exit (range 9) 1126 | -10/Materials | Entered Mines 1186 | -10/Mines | Assembled infested the area 1191 | -10/Mines | Assisted by a Guerilla fighting off Assembled 1263 | -10/Mines | Core integrity fell below 50% 1278 | -10/Mines | Core integrity fell below 20% 1280 | -10/Mines | Destroyed by as-49633 with Assembled Heavy Rifle Last Messages --------------- 01265_ Ion Engine destroyed. 01272_ Heat Sink destroyed. 01272_ Com. Wheel destroyed. 01272_ System corrupted by crushing effect (+1). 01272_ System corrupted by crushing effect (+2). 01272_ Knocked back. 01273_ Imp. Light Cannon destroyed. 01273_ HV Slug penetrates as-16836. 01273_ as-16836 knocked back. 01273_ HV Slug penetrates as-16836. 01273_ HV Slug penetrates Wall. 01275_ HV Slug penetrates as-61308. 01275_ as-61308 suffers critical hit (Destroy). 01275_ as-61308 knocked back. 01275_ HV Slug penetrates Wall. 01277_ as-61308 suffers critical hit (Destroy). 01277_ as-61308 destroyed. 01279_ System corrupted: IFF burst signal emitted. 01280_ Knocked back. Map ----- +----------------------------------------------------+ | ????????????????????????????????????????????? | | ????????????????????????????????????????????? | | ????????????????????????????????????????????? | | ????????????????????????????????????????????? | | ????????????????????????????????????????????? | | ????????????????????????????????????????????? | | ????????????????????????????????????????????? | | ????????????????????????????????????????????? | | ????????????????????????????????????????????? | | ????????????????????????????????????????????? | | ????????????????????????????????????????????? | | ????????????????????????????##??????????????? | | ????????????? ????????????## ??????????????? | | ??????????? ???????????# ??????????????? | | ?????????# ???????????# ??????????????? | | ????????? ??????????# ??????????????? | | ???????? ??????????# ??????????????? | | ???????? ????????## #?????????????? | | ???????" # % ????????? ##????????????? | | ???????" * % ????????? ##???????????? | | ????????? = ! ?????????? ###?????????? | | ??????????# ?????????# ####??????? | | ??????????# ??####???# ##?????? | | ????????????# g ## ##### #?????? | | ????????????# # ## ##????? | | ?????????????# @ a a % #????? | | ????????????# # a a% #??### | | ????????????# # ??# ##; #???# | | ??????????????#????## #;### % "#???# | | ???????????????????# # #?#?# % #" #?# | | ??????????????????# ## ##???# ##?##?# | | ????????????????? # ?####????## ##???# | | ???????????????? ##??????????## =##### | | ???????????????# ??????????????# %| | | ???????????????# ??????????????# | | ???????????????# ????????? | | ??????????????? ???????? | | ?????????????? ??????? ##### # | | ?????????????#????????? ?????## ## | | ??????????????????????? ##???????# ##$ | | ??????????????????????????????????# ### | | ??????????????????????????????????## ##?# | | ???????????????????????????????????#####??# | | ??????????????????????????????????????????# # | | ???????????????????????????????????????????## | | ????????????????????????????????????????????? | | ????????????????????????????????????????????? | | ????????????????????????????????????????????? | | ????????????????????????????????????????????? | | ????????????????????????????????????????????? | +----------------------------------------------------+ Best States ------------- Heat Dissipation 35 Energy Generation 10 Energy Capacity 250 Matter Stores 300 Matter Capacity 300 Sight Range 16 Terrain Scan Density 10 Evasion (%) 42 Recoil Reduction 1 Item Schematics ----------------- None Robot Schematics ------------------ None Fabricated ------------ Nothing Repaired ---------- Nothing Alien Tech Used ----------------- None Achievements -------------- None Challenges ------------ None Game ------ Seed UtilityHellfireLink Manual? 0 Play Time 00:16:31 Cumulative 5.7 hours Start 2025.07.09 @ 13:18:45 End 2025.07.09 @ 13:35:15 Sessions 1 Manual Loads 0 Difficulty Rogue Special Mode None Game No. 7 Rogue 7 Adventurer 0 Explorer 0 Win Type - Total 0 Types 0/0/0/0/0/0/0/0/0/0 Lore% 1 Gallery% 9 Achievement% 10 Wizard Run 0 Options --------- Layout 1 ASCII 0 Keyboard 0 Movement Arrows Keybinds 0 Fullscreen 1 Font 36/Smallcaps Map View 50x40 Zoom Use 0% Tactical HUD 1 Map Filters NONE Filters NONE Steam 1 RUN: f60710ce-f958-4686-8b37-00e38a8acdf4